Workbook

Sheet Total Ratios
A1: MidAmerican Energy Company
A2: South Dakota Energy Efficiency
A3: 2017 Benefit/Cost Statistics - Total (Gas and Electric Non-Curtailment)
C5: Ratepayer | E5: Total
B6: Participant | C6: Impact | D6: Utility | E6: Resource | F6: Societal
A7: Program | B7: Test | C7: Test | D7: Test | E7: Test | F7: Test
A8: Residential Equipment | B8: =IF('Combined Inputs'!D9>0,('Combined Inputs'!F9+'Combined Inputs'!C9+'Combined Inputs'!E9+'Combined Inputs'!I9)/'Combined Inputs'!D9,0) -> 2.370416834 | C8: ='Combined Inputs'!G9/('Combined Inputs'!B9+'Combined Inputs'!C9+'Combined Inputs'!F9) -> 0.840211043 | D8: ='Combined Inputs'!G9/('Combined Inputs'!B9+'Combined Inputs'!C9) -> 4.803620721 | E8: =('Combined Inputs'!G9+'Combined Inputs'!E9+'Combined Inputs'!I9)/('Combined Inputs'!B9+'Combined Inputs'!D9) -> 1.973425289 | F8: =('Combined Inputs'!H9+'Combined Inputs'!J9)/('Combined Inputs'!B9+'Combined Inputs'!D9) -> 2.559603509
A9: Residential Audit | B9: =IF('Combined Inputs'!D10>0,('Combined Inputs'!F10+'Combined Inputs'!C10+'Combined Inputs'!E10+'Combined Inputs'!I10)/'Combined Inputs'!D10,0) -> 2.833395023 | C9: ='Combined Inputs'!G10/('Combined Inputs'!B10+'Combined Inputs'!C10+'Combined Inputs'!F10) -> 0.5335088857 | D9: ='Combined Inputs'!G10/('Combined Inputs'!B10+'Combined Inputs'!C10) -> 1.184051133 | E9: =('Combined Inputs'!G10+'Combined Inputs'!E10+'Combined Inputs'!I10)/('Combined Inputs'!B10+'Combined Inputs'!D10) -> 1.707243642 | F9: =('Combined Inputs'!H10+'Combined Inputs'!J10)/('Combined Inputs'!B10+'Combined Inputs'!D10) -> 1.255053216
A10: Residential Appliance Recycling | B10: =IF('Combined Inputs'!D11>0,('Combined Inputs'!F11+'Combined Inputs'!C11+'Combined Inputs'!E11+'Combined Inputs'!I11)/'Combined Inputs'!D11,0) -> 4.754674162 | C10: ='Combined Inputs'!G11/('Combined Inputs'!B11+'Combined Inputs'!C11+'Combined Inputs'!F11) -> 0.4869185059 | D10: ='Combined Inputs'!G11/('Combined Inputs'!B11+'Combined Inputs'!C11) -> 1.327756862 | E10: =('Combined Inputs'!G11+'Combined Inputs'!E11+'Combined Inputs'!I11)/('Combined Inputs'!B11+'Combined Inputs'!D11) -> 1.701383541 | F10: =('Combined Inputs'!H11+'Combined Inputs'!J11)/('Combined Inputs'!B11+'Combined Inputs'!D11) -> 2.013586226
A11: Nonresidential Equipment | B11: =IF('Combined Inputs'!D12>0,('Combined Inputs'!F12+'Combined Inputs'!C12+'Combined Inputs'!E12+'Combined Inputs'!I12)/'Combined Inputs'!D12,0) -> 2.351127335 | C11: ='Combined Inputs'!G12/('Combined Inputs'!B12+'Combined Inputs'!C12+'Combined Inputs'!F12) -> 0.9678765825 | D11: ='Combined Inputs'!G12/('Combined Inputs'!B12+'Combined Inputs'!C12) -> 9.024354466 | E11: =('Combined Inputs'!G12+'Combined Inputs'!E12+'Combined Inputs'!I12)/('Combined Inputs'!B12+'Combined Inputs'!D12) -> 2.247180537 | F11: =('Combined Inputs'!H12+'Combined Inputs'!J12)/('Combined Inputs'!B12+'Combined Inputs'!D12) -> 3.237292564
A12: Small Commercial Energy Audit | B12: =IF('Combined Inputs'!D13>0,('Combined Inputs'!F13+'Combined Inputs'!C13+'Combined Inputs'!E13+'Combined Inputs'!I13)/'Combined Inputs'!D13,0) -> 7.3911574 | C12: ='Combined Inputs'!G13/('Combined Inputs'!B13+'Combined Inputs'!C13+'Combined Inputs'!F13) -> 0.5186240344 | D12: ='Combined Inputs'!G13/('Combined Inputs'!B13+'Combined Inputs'!C13) -> 1.220518522 | E12: =('Combined Inputs'!G13+'Combined Inputs'!E13+'Combined Inputs'!I13)/('Combined Inputs'!B13+'Combined Inputs'!D13) -> 4.409699391 | F12: =('Combined Inputs'!H13+'Combined Inputs'!J13)/('Combined Inputs'!B13+'Combined Inputs'!D13) -> 1.543809274
A13: Nonresidential Custom | B13: =IF('Combined Inputs'!D14>0,('Combined Inputs'!F14+'Combined Inputs'!C14+'Combined Inputs'!E14+'Combined Inputs'!I14)/'Combined Inputs'!D14,0) -> 1.376095763 | C13: ='Combined Inputs'!G14/('Combined Inputs'!B14+'Combined Inputs'!C14+'Combined Inputs'!F14) -> 0.9560817815 | D13: ='Combined Inputs'!G14/('Combined Inputs'!B14+'Combined Inputs'!C14) -> 4.586596668 | E13: =('Combined Inputs'!G14+'Combined Inputs'!E14+'Combined Inputs'!I14)/('Combined Inputs'!B14+'Combined Inputs'!D14) -> 1.278170879 | F13: =('Combined Inputs'!H14+'Combined Inputs'!J14)/('Combined Inputs'!B14+'Combined Inputs'!D14) -> 1.868461405
A14: Total | B14: =IF('Combined Inputs'!D15>0,('Combined Inputs'!F15+'Combined Inputs'!C15+'Combined Inputs'!E15+'Combined Inputs'!I15)/'Combined Inputs'!D15,0) -> 2.432380642 | C14: ='Combined Inputs'!G15/('Combined Inputs'!B15+'Combined Inputs'!C15+'Combined Inputs'!F15) -> 0.8336879218 | D14: ='Combined Inputs'!G15/('Combined Inputs'!B15+'Combined Inputs'!C15) -> 4.25415469 | E14: =('Combined Inputs'!G15+'Combined Inputs'!E15+'Combined Inputs'!I15)/('Combined Inputs'!B15+'Combined Inputs'!D15) -> 1.993151681 | F14: =('Combined Inputs'!H15+'Combined Inputs'!J15)/('Combined Inputs'!B15+'Combined Inputs'!D15) -> 2.461762127
A16: 2017 Benefit/Cost Statistics - Total Electric Curtailment
C18: Ratepayer | E18: Total
B19: Participant | C19: Impact | D19: Utility | E19: Resource | F19: Societal
A20: Program | B20: Test | C20: Test | D20: Test | E20: Test | F20: Test
A21: Residential Load Management | B21: ='Electric Ratios'!B21 -> 0 | C21: ='Electric Ratios'!C21 -> 1.198962016 | D21: ='Electric Ratios'!D21 -> 1.210230766 | E21: ='Electric Ratios'!E21 -> 2.79376822 | F21: ='Electric Ratios'!F21 -> 3.118654123

Sheet Electric Ratios
A1: MidAmerican Energy Company
A2: South Dakota Energy Efficiency
A3: 2017 Benefit/Cost Statistics - Electric Programs (Non-Curtailment)
C5: Ratepayer | E5: Total
B6: Participant | C6: Impact | D6: Utility | E6: Resource | F6: Societal
A7: Program | B7: Test | C7: Test | D7: Test | E7: Test | F7: Test
A8: Residential Equipment | B8: =IF('Electric Inputs'!D9>0,('Electric Inputs'!F9+'Electric Inputs'!C9+'Electric Inputs'!E9+'Electric Inputs'!I9)/'Electric Inputs'!D9,0) -> 1.764498119 | C8: ='Electric Inputs'!G9/('Electric Inputs'!B9+'Electric Inputs'!C9+'Electric Inputs'!F9) -> 0.9596363953 | D8: ='Electric Inputs'!G9/('Electric Inputs'!B9+'Electric Inputs'!C9) -> 3.244523277 | E8: =('Electric Inputs'!G9+'Electric Inputs'!I9+'Electric Inputs'!E9)/('Electric Inputs'!B9+'Electric Inputs'!D9) -> 1.674673927 | F8: =('Electric Inputs'!H9+'Electric Inputs'!J9)/('Electric Inputs'!B9+'Electric Inputs'!D9) -> 1.641230727
A9: Residential Audit | B9: =IF('Electric Inputs'!D10>0,('Electric Inputs'!F10+'Electric Inputs'!C10+'Electric Inputs'!E10+'Electric Inputs'!I10)/'Electric Inputs'!D10,0) -> 1.497381114 | C9: ='Electric Inputs'!G10/('Electric Inputs'!B10+'Electric Inputs'!C10+'Electric Inputs'!F10) -> 0.6171837653 | D9: ='Electric Inputs'!G10/('Electric Inputs'!B10+'Electric Inputs'!C10) -> 1.769081221 | E9: =('Electric Inputs'!G10+'Electric Inputs'!I10+'Electric Inputs'!E10)/('Electric Inputs'!B10+'Electric Inputs'!D10) -> 0.9424781668 | F9: =('Electric Inputs'!H10+'Electric Inputs'!J10)/('Electric Inputs'!B10+'Electric Inputs'!D10) -> 1.182796535
A10: Residential Appliance Recycling | B10: =IF('Electric Inputs'!D11>0,('Electric Inputs'!F11+'Electric Inputs'!C11+'Electric Inputs'!E11+'Electric Inputs'!I11)/'Electric Inputs'!D11,0) -> 4.754674162 | C10: ='Electric Inputs'!G11/('Electric Inputs'!B11+'Electric Inputs'!C11+'Electric Inputs'!F11) -> 0.4869185059 | D10: ='Electric Inputs'!G11/('Electric Inputs'!B11+'Electric Inputs'!C11) -> 1.327756862 | E10: =('Electric Inputs'!G11+'Electric Inputs'!I11+'Electric Inputs'!E11)/('Electric Inputs'!B11+'Electric Inputs'!D11) -> 1.701383541 | F10: =('Electric Inputs'!H11+'Electric Inputs'!J11)/('Electric Inputs'!B11+'Electric Inputs'!D11) -> 2.013586226
A11: Nonresidential Equipment | B11: =IF('Electric Inputs'!D12>0,('Electric Inputs'!F12+'Electric Inputs'!C12+'Electric Inputs'!E12+'Electric Inputs'!I12)/'Electric Inputs'!D12,0) -> 4.277985068 | C11: ='Electric Inputs'!G12/('Electric Inputs'!B12+'Electric Inputs'!C12+'Electric Inputs'!F12) -> 1.206952024 | D11: ='Electric Inputs'!G12/('Electric Inputs'!B12+'Electric Inputs'!C12) -> 11.43062088 | E11: =('Electric Inputs'!G12+'Electric Inputs'!I12+'Electric Inputs'!E12)/('Electric Inputs'!B12+'Electric Inputs'!D12) -> 4.813901172 | F11: =('Electric Inputs'!H12+'Electric Inputs'!J12)/('Electric Inputs'!B12+'Electric Inputs'!D12) -> 6.787184069
A12: Small Commercial Energy Audit | B12: =IF('Electric Inputs'!D13>0,('Electric Inputs'!F13+'Electric Inputs'!C13+'Electric Inputs'!E13+'Electric Inputs'!I13)/'Electric Inputs'!D13,0) -> 2.648975063 | C12: ='Electric Inputs'!G13/('Electric Inputs'!B13+'Electric Inputs'!C13+'Electric Inputs'!F13) -> 0.3662476192 | D12: ='Electric Inputs'!G13/('Electric Inputs'!B13+'Electric Inputs'!C13) -> 0.518975678 | E12: =('Electric Inputs'!G13+'Electric Inputs'!I13+'Electric Inputs'!E13)/('Electric Inputs'!B13+'Electric Inputs'!D13) -> 1.052312975 | F12: =('Electric Inputs'!H13+'Electric Inputs'!J13)/('Electric Inputs'!B13+'Electric Inputs'!D13) -> 0.6843464455
A13: Nonresidential Custom | B13: =IF('Electric Inputs'!D14>0,('Electric Inputs'!F14+'Electric Inputs'!C14+'Electric Inputs'!E14+'Electric Inputs'!I14)/'Electric Inputs'!D14,0) -> 0.7495011965 | C13: ='Electric Inputs'!G14/('Electric Inputs'!B14+'Electric Inputs'!C14+'Electric Inputs'!F14) -> 1.142349735 | D13: ='Electric Inputs'!G14/('Electric Inputs'!B14+'Electric Inputs'!C14) -> 4.867463374 | E13: =('Electric Inputs'!G14+'Electric Inputs'!I14+'Electric Inputs'!E14)/('Electric Inputs'!B14+'Electric Inputs'!D14) -> 0.8839137841 | F13: =('Electric Inputs'!H14+'Electric Inputs'!J14)/('Electric Inputs'!B14+'Electric Inputs'!D14) -> 1.34371489
A14: Total | B14: =IF('Electric Inputs'!D15>0,('Electric Inputs'!F15+'Electric Inputs'!C15+'Electric Inputs'!E15+'Electric Inputs'!I15)/'Electric Inputs'!D15,0) -> 1.856165381 | C14: ='Electric Inputs'!G15/('Electric Inputs'!B15+'Electric Inputs'!C15+'Electric Inputs'!F15) -> 1.039816228 | D14: ='Electric Inputs'!G15/('Electric Inputs'!B15+'Electric Inputs'!C15) -> 4.500396994 | E14: =('Electric Inputs'!G15+'Electric Inputs'!I15+'Electric Inputs'!E15)/('Electric Inputs'!B15+'Electric Inputs'!D15) -> 1.848370786 | F14: =('Electric Inputs'!H15+'Electric Inputs'!J15)/('Electric Inputs'!B15+'Electric Inputs'!D15) -> 2.178363269
A16: 2017 Benefit/Cost Statistics - Total Electric Curtailment
C18: Ratepayer | E18: Total
B19: Participant | C19: Impact | D19: Utility | E19: Resource | F19: Societal
A20: Program | B20: Test | C20: Test | D20: Test | E20: Test | F20: Test
A21: Residential Load Management | B21: 0 | C21: 1.198962016 | D21: 1.210230766 | E21: 2.79376822 | F21: 3.118654123

Sheet Gas Ratios
A1: MidAmerican Energy Company
A2: South Dakota Energy Efficiency
A3: 2017 Benefit/Cost Statistics - Gas Programs
C5: Ratepayer | E5: Total
B6: Participant | C6: Impact | D6: Utility | E6: Resource | F6: Societal
A7: Program | B7: Test | C7: Test | D7: Test | E7: Test | F7: Test
A8: Residential Equipment | B8: =IF('Gas Inputs'!D9>0,('Gas Inputs'!F9+'Gas Inputs'!C9+'Gas Inputs'!E9+'Gas Inputs'!I9)/'Gas Inputs'!D9,0) -> 2.46943647 | C8: ='Gas Inputs'!G9/('Gas Inputs'!B9+'Gas Inputs'!C9+'Gas Inputs'!F9) -> 0.8303867615 | D8: ='Gas Inputs'!G9/('Gas Inputs'!B9+'Gas Inputs'!C9) -> 5.03356833 | E8: =('Gas Inputs'!G9+'Gas Inputs'!I9+'Gas Inputs'!E9)/('Gas Inputs'!B9+'Gas Inputs'!D9) -> 2.0237368 | F8: =('Gas Inputs'!H9+'Gas Inputs'!J9)/('Gas Inputs'!B9+'Gas Inputs'!D9) -> 2.714262963
A9: Residential Audit | B9: =IF('Gas Inputs'!D10>0,('Gas Inputs'!F10+'Gas Inputs'!C10+'Gas Inputs'!E10+'Gas Inputs'!I10)/'Gas Inputs'!D10,0) -> 2.84919913 | C9: ='Gas Inputs'!G10/('Gas Inputs'!B10+'Gas Inputs'!C10+'Gas Inputs'!F10) -> 0.5327974731 | D9: ='Gas Inputs'!G10/('Gas Inputs'!B10+'Gas Inputs'!C10) -> 1.180207273 | E9: =('Gas Inputs'!G10+'Gas Inputs'!I10+'Gas Inputs'!E10)/('Gas Inputs'!B10+'Gas Inputs'!D10) -> 1.715443748 | F9: =('Gas Inputs'!H10+'Gas Inputs'!J10)/('Gas Inputs'!B10+'Gas Inputs'!D10) -> 1.25582798
A10: Nonresidential Equipment | B10: =IF('Gas Inputs'!D11>0,('Gas Inputs'!F11+'Gas Inputs'!C11+'Gas Inputs'!E11+'Gas Inputs'!I11)/'Gas Inputs'!D11,0) -> 2.210963697 | C10: ='Gas Inputs'!G11/('Gas Inputs'!B11+'Gas Inputs'!C11+'Gas Inputs'!F11) -> 0.9333020879 | D10: ='Gas Inputs'!G11/('Gas Inputs'!B11+'Gas Inputs'!C11) -> 8.682525698 | E10: =('Gas Inputs'!G11+'Gas Inputs'!I11+'Gas Inputs'!E11)/('Gas Inputs'!B11+'Gas Inputs'!D11) -> 2.045904078 | F10: =('Gas Inputs'!H11+'Gas Inputs'!J11)/('Gas Inputs'!B11+'Gas Inputs'!D11) -> 2.958918057
A11: Small Commercial Energy Audit | B11: =IF('Gas Inputs'!D12>0,('Gas Inputs'!F12+'Gas Inputs'!C12+'Gas Inputs'!E12+'Gas Inputs'!I12)/'Gas Inputs'!D12,0) -> 7.575156888 | C11: ='Gas Inputs'!G12/('Gas Inputs'!B12+'Gas Inputs'!C12+'Gas Inputs'!F12) -> 0.5229709772 | D11: ='Gas Inputs'!G12/('Gas Inputs'!B12+'Gas Inputs'!C12) -> 1.254395533 | E11: =('Gas Inputs'!G12+'Gas Inputs'!I12+'Gas Inputs'!E12)/('Gas Inputs'!B12+'Gas Inputs'!D12) -> 4.57164884 | F11: =('Gas Inputs'!H12+'Gas Inputs'!J12)/('Gas Inputs'!B12+'Gas Inputs'!D12) -> 1.585266978
A12: Nonresidential Custom | B12: =IF('Gas Inputs'!D13>0,('Gas Inputs'!F13+'Gas Inputs'!C13+'Gas Inputs'!E13+'Gas Inputs'!I13)/'Gas Inputs'!D13,0) -> 2.121896488 | C12: ='Gas Inputs'!G13/('Gas Inputs'!B13+'Gas Inputs'!C13+'Gas Inputs'!F13) -> 0.8716283094 | D12: ='Gas Inputs'!G13/('Gas Inputs'!B13+'Gas Inputs'!C13) -> 4.43454413 | E12: =('Gas Inputs'!G13+'Gas Inputs'!I13+'Gas Inputs'!E13)/('Gas Inputs'!B13+'Gas Inputs'!D13) -> 1.739110316 | F12: =('Gas Inputs'!H13+'Gas Inputs'!J13)/('Gas Inputs'!B13+'Gas Inputs'!D13) -> 2.481960482
A13: Total | B13: =IF('Gas Inputs'!D14>0,('Gas Inputs'!F14+'Gas Inputs'!C14+'Gas Inputs'!E14+'Gas Inputs'!I14)/'Gas Inputs'!D14,0) -> 2.519110563 | C13: ='Gas Inputs'!G14/('Gas Inputs'!B14+'Gas Inputs'!C14+'Gas Inputs'!F14) -> 0.8129259743 | D13: ='Gas Inputs'!G14/('Gas Inputs'!B14+'Gas Inputs'!C14) -> 4.224375669 | E13: =('Gas Inputs'!G14+'Gas Inputs'!I14+'Gas Inputs'!E14)/('Gas Inputs'!B14+'Gas Inputs'!D14) -> 2.015328241 | F13: =('Gas Inputs'!H14+'Gas Inputs'!J14)/('Gas Inputs'!B14+'Gas Inputs'!D14) -> 2.505171251

Sheet Combined Inputs
A1: MidAmerican Energy Company
A2: South Dakota Energy Efficiency
A3: 2017 Benefit/Cost Input Data - Total (Gas and Electric Non-Curtailment)
G5: Avoided | H5: Avoided
F6: Bill | G6: Energy - Capacity | H6: Energy - Capacity | I6: Non-Energy
B7: Administrative | C7: Incentives | D7: Incremental | E7: Tax | F7: Savings | G7: Costs | H7: Costs | I7: Benefits | J7: Externalities
A8: Program | B8: Costs | C8: Paid | D8: Investment | E8: Credits | F8: (NPV - PRT) | G8: (NPV - PRT) | H8: (NPV - SOC) | I8: (NPV - PRT) | J8: (NPV-SOC)
A9: Residential Equipment | B9: ='Electric Inputs'!B9+'Gas Inputs'!B9 -> 51240.17 | C9: ='Electric Inputs'!C9+'Gas Inputs'!C9 -> 588146.83 | D9: ='Electric Inputs'!D9+'Gas Inputs'!D9 -> 1596969.6 | E9: ='Electric Inputs'!E9+'Gas Inputs'!E9 -> 131200 | F9: ='Electric Inputs'!F9+'Gas Inputs'!F9 -> 3016090.594 | G9: ='Electric Inputs'!G9+'Gas Inputs'!G9 -> 3071372.642 | H9: ='Electric Inputs'!H9+'Gas Inputs'!H9 -> 3916223.024 | I9: ='Electric Inputs'!I9+'Gas Inputs'!I9 -> 50046.19965 | J9: ='Electric Inputs'!J9+'Gas Inputs'!J9 -> 302540.4868
A10: Residential Audit | B10: ='Electric Inputs'!B10+'Gas Inputs'!B10 -> 83611.83 | C10: ='Electric Inputs'!C10+'Gas Inputs'!C10 -> 225696.17 | D10: ='Electric Inputs'!D10+'Gas Inputs'!D10 -> 336868.48 | E10: ='Electric Inputs'!E10+'Gas Inputs'!E10 -> 0 | F10: ='Electric Inputs'!F10+'Gas Inputs'!F10 -> 377159.4566 | G10: ='Electric Inputs'!G10+'Gas Inputs'!G10 -> 366236.4878 | H10: ='Electric Inputs'!H10+'Gas Inputs'!H10 -> 490795.5854 | I10: ='Electric Inputs'!I10+'Gas Inputs'!I10 -> 351625.848 | J10: ='Electric Inputs'!J10+'Gas Inputs'!J10 -> 36929.57997
A11: Residential Appliance Recycling | B11: ='Electric Inputs'!B11 -> 1999.5 | C11: ='Electric Inputs'!C11 -> 5632.5 | D11: ='Electric Inputs'!D11 -> 3956.5 | E11: ='Electric Inputs'!E11 -> 0 | F11: ='Electric Inputs'!F11 -> 13179.36832 | G11: ='Electric Inputs'!G11 -> 10133.44037 | H11: ='Electric Inputs'!H11 -> 10902.6535 | I11: ='Electric Inputs'!I11 -> 0 | J11: ='Electric Inputs'!J11 -> 1090.266067
A12: Nonresidential Equipment | B12: ='Electric Inputs'!B12+'Gas Inputs'!B11 -> 14276.31 | C12: ='Electric Inputs'!C12+'Gas Inputs'!C11 -> 142929.08 | D12: ='Electric Inputs'!D12+'Gas Inputs'!D11 -> 624265.84 | E12: ='Electric Inputs'!E12+'Gas Inputs'!E11 -> 0 | F12: ='Electric Inputs'!F12+'Gas Inputs'!F11 -> 1308557.073 | G12: ='Electric Inputs'!G12+'Gas Inputs'!G11 -> 1418677.163 | H12: ='Electric Inputs'!H12+'Gas Inputs'!H11 -> 1916265.528 | I12: ='Electric Inputs'!I12+'Gas Inputs'!I11 -> 16242.32792 | J12: ='Electric Inputs'!J12+'Gas Inputs'!J11 -> 150882.2253
A13: Small Commercial Energy Audit | B13: ='Electric Inputs'!B13+'Gas Inputs'!B12 -> 13850.444 | C13: ='Electric Inputs'!C13+'Gas Inputs'!C12 -> 34038.556 | D13: ='Electric Inputs'!D13+'Gas Inputs'!D12 -> 34036.156 | E13: ='Electric Inputs'!E13+'Gas Inputs'!E12 -> 0 | F13: ='Electric Inputs'!F13+'Gas Inputs'!F12 -> 64811.93093 | G13: ='Electric Inputs'!G13+'Gas Inputs'!G12 -> 58449.41148 | H13: ='Electric Inputs'!H13+'Gas Inputs'!H12 -> 68738.14701 | I13: ='Electric Inputs'!I13+'Gas Inputs'!I12 -> 152716.0994 | J13: ='Electric Inputs'!J13+'Gas Inputs'!J12 -> 5189.630187
A14: Nonresidential Custom | B14: ='Electric Inputs'!B14+'Gas Inputs'!B13 -> 18002.8 | C14: ='Electric Inputs'!C14+'Gas Inputs'!C13 -> 30117.2 | D14: ='Electric Inputs'!D14+'Gas Inputs'!D13 -> 154671.32 | E14: ='Electric Inputs'!E14+'Gas Inputs'!E13 -> 0 | F14: ='Electric Inputs'!F14+'Gas Inputs'!F13 -> 182725.3481 | G14: ='Electric Inputs'!G14+'Gas Inputs'!G13 -> 220707.0317 | H14: ='Electric Inputs'!H14+'Gas Inputs'!H13 -> 297292.0488 | I14: ='Electric Inputs'!I14+'Gas Inputs'!I13 -> 0 | J14: ='Electric Inputs'!J14+'Gas Inputs'!J13 -> 25342.88007
A15: Total | B15: =SUM(B9:B14) -> 182981.054 | C15: =SUM(C9:C14) -> 1026560.336 | D15: 2750767.896 | E15: =SUM(E9:E14) -> 131200 | F15: 4962523.771 | G15: 5145576.177 | H15: 6700216.988 | I15: =SUM(I9:I14) -> 570630.4749 | J15: 521975.0684

Sheet Electric Inputs
A1: MidAmerican Energy Company
A2: South Dakota Energy Efficiency
A3: 2017 Benefit/Cost Input Data - Electric Programs (Non-Curtailment)
G5: Avoided | H5: Avoided
F6: Bill | G6: Energy - Capacity | H6: Energy - Capacity | I6: Non-Energy
B7: Administrative | C7: Incentives | D7: Incremental | E7: Tax | F7: Savings | G7: Costs | H7: Costs | I7: Benefits | J7: Externalities
A8: Program | B8: Costs | C8: Paid | D8: Investment | E8: Credits | F8: (NPV - PRT) | G8: (NPV - PRT) | H8: (NPV - SOC) | I8: (NPV - PRT) | J8: (NPV-SOC)
A9: Residential Equipment | B9: 13242.17 | C9: 68938.83 | D9: 224319.4 | E9: 131200 | F9: 195672.3294 | G9: 266638.1674 | H9: 354448.4901 | I9: 0 | J9: 35444.85818
A10: Residential Audit | B10: 522.39 | C10: 1496.61 | D10: 3938.33 | E10: 0 | F10: 3768.214741 | G10: 3571.774985 | H10: 4796.477297 | I10: 632.3562237 | J10: 479.646863
A11: Residential Appliance Recycling | B11: 1999.5 | C11: 5632.5 | D11: 3956.5 | E11: 0 | F11: 13179.36832 | G11: 10133.44037 | H11: 10902.6535 | I11: 0 | J11: 1090.266067
A12: Nonresidential Equipment | B12: 4100.81 | C12: 15453.58 | D12: 42331.14 | E12: 0 | F12: 165638.4048 | G12: 223518.8185 | H12: 286492.9044 | I12: 0 | J12: 28649.28693
A13: Small Commercial Energy Audit | B13: 932.304 | C13: 1273.696 | D13: 1271.296 | E13: 0 | F13: 919.9188747 | G13: 1144.860346 | H13: 1370.936818 | I13: 1174.016527 | J13: 137.089009
A14: Nonresidential Custom | B14: 9016 | C14: 7885 | D14: 84053.03 | E14: 0 | F14: 55112.84655 | G14: 82264.99849 | H14: 113499.7789 | I14: 0 | J14: 11558.46249
A15: Total | B15: =SUM(B9:B14) -> 29813.174 | C15: 100680.216 | D15: 359869.696 | E15: 131200 | F15: 434291.0827 | G15: 587272.0601 | H15: 771511.241 | I15: 1806.37275 | J15: 77359.60954

Sheet Gas Inputs
A1: MidAmerican Energy Company
A2: South Dakota Energy Efficiency
A3: 2017 Benefit/Cost Input Data - Gas Programs
G5: Avoided | H5: Avoided
F6: Bill | G6: Energy - Capacity | H6: Energy - Capacity | I6: Non-Energy
B7: Administrative | C7: Incentives | D7: Incremental | E7: Tax | F7: Savings | G7: Costs | H7: Costs | I7: Benefits | J7: Externalities
A8: Program | B8: Costs | C8: Paid | D8: Investment | E8: Credits | F8: (NPV - PRT) | G8: (NPV - PRT) | H8: (NPV - SOC) | I8: (NPV - PRT) | J8: (NPV-SOC)
A9: Residential Equipment | B9: 37998 | C9: 519208 | D9: 1372650.2 | E9: 0 | F9: 2820418.265 | G9: 2804734.475 | H9: 3561774.534 | I9: 50046.19965 | J9: 267095.6286
A10: Residential Audit | B10: 83089.44 | C10: 224199.56 | D10: 332930.15 | E10: 0 | F10: 373391.2418 | G10: 362664.7129 | H10: 485999.1081 | I10: 350993.4918 | J10: 36449.93311
A11: Nonresidential Equipment | B11: 10175.5 | C11: 127475.5 | D11: 581934.7 | E11: 0 | F11: 1142918.668 | G11: 1195158.345 | H11: 1629772.624 | I11: 16242.32792 | J11: 122232.9384
A12: Small Commercial Energy Audit | B12: 12918.14 | C12: 32764.86 | D12: 32764.86 | E12: 0 | F12: 63892.01206 | G12: 57304.55113 | H12: 67367.21019 | I12: 151542.0828 | J12: 5052.541178
A13: Nonresidential Custom | B13: 8986.8 | C13: 22232.2 | D13: 70618.29 | E13: 0 | F13: 127612.5016 | G13: 138442.0332 | H13: 183792.27 | I13: 0 | J13: 13784.41758
A14: Total | B14: =SUM(B9:B13) -> 153167.88 | C14: 925880.12 | D14: 2390898.2 | E14: 0 | F14: 4528232.688 | G14: 4558304.117 | H14: 5928705.747 | I14: 568824.1022 | J14: 444615.4589
